bitfinex/quotes_SOLUSD_20241213
["timestamp","ask_amount","ask_price","bid_price","bid_amount"]
[1734100438051,0.5345105,223.72,223.71,13.19553236]
[1734100439433,0.5345105,223.72,223.71,13.8658097]
[1734100441553,1.05e-05,223.72,223.71,37.7681837]
[1734100441850,13.19553236,223.87,223.74,20.0]
[1734100442151,13.19553236,223.86,223.82,20.0]
[1734100442547,13.32102236,223.85,223.82,20.0]
[1734100442863,13.32102236,223.83,223.76,13.19553236]
[1734100443150,0.12549,223.81,223.75,13.19553236]
[1734100443452,0.12549,223.81,223.78,20.0]
[1734100444259,0.12549,223.81,223.76,13.19553236]
[1734100444950,0.12549,223.79,223.74,15.81480744]
[1734100445730,13.19553236,223.81,223.74,15.81480744]
[1734100446145,0.83782491,223.83,223.74,13.19553236]
[1734100446146,13.32102236,223.8,223.74,13.19553236]
[1734100446338,13.32102236,223.8,223.74,20.0]
[1734100446553,0.83782491,223.83,223.75,20.0]
[1734100446554,0.12549,223.76,223.75,20.0]
[1734100447069,13.32102236,223.76,223.69,13.19553236]
[1734100447534,13.19553236,223.77,223.7,13.19553236]
[1734100447729,0.12549,223.76,223.7,13.19553236]
[1734100447930,0.12549,223.76,223.71,13.19553236]
[1734100448133,13.19553236,223.79,223.72,13.19553236]
[1734100448433,0.12549,223.77,223.71,13.19553236]
[1734100448646,0.12549,223.77,223.75,20.0]
[1734100449328,13.32102236,223.77,223.74,20.0]
[1734100449635,0.12549,223.75,223.73,20.0]
[1734100449882,0.12549,223.75,223.72,20.0]
[1734100449942,0.12549,223.76,223.74,20.0]
[1734100450362,0.12549,223.76,223.75,20.0]
[1734100450544,0.12549,223.79,223.74,20.0]
[1734100450745,0.12549,223.79,223.74,33.19553236]
[1734100451263,0.12549,223.79,223.76,20.0]
[1734100451439,0.12549,223.78,223.73,13.19553236]
[1734100452161,36.97241636,223.82,223.75,13.19553236]
[1734100452356,13.19553236,223.96,223.75,13.19553236]
[1734100452357,0.8378085,223.91,223.82,20.0]
[1734100452538,2.0137,223.99,223.93,20.0]
[1734100452744,2.0137,223.99,223.94,20.0]
[1734100453061,0.6600005,223.95,223.94,20.0]
[1734100453260,0.5345105,223.95,223.86,20.6697422]
[1734100453493,21.59750837,223.95,223.91,20.0]
[1734100454049,0.12549,223.94,223.91,20.0]
[1734100454238,21.06299787,223.92,223.84,21.06299787]
[1734100454439,21.06299787,223.9,223.86,20.0]
[1734100454764,0.12549,223.88,223.86,20.0]
[1734100455246,0.12549,223.89,223.86,20.0]
[1734100455857,0.12549,223.89,223.83,21.06299787]
[1734100456654,1.37203036,223.95,223.76,1.8733]
[1734100456655,22.43502823,223.95,223.87,21.06299787]
[1734100456982,0.5345105,223.95,223.89,21.06299787]
[1734100457133,0.5345105,223.95,223.9,21.06299787]
[1734100457531,0.5345105,223.95,223.86,0.66979107]
[1734100457759,21.59750837,223.95,223.88,21.06299787]
[1734100457953,0.12549,223.94,223.88,21.06299787]
[1734100458139,0.96283088,223.94,223.88,21.06299787]
[1734100458339,0.12549,223.92,223.88,21.06299787]
[1734100458661,0.83734908,223.93,223.83,21.06299787]
[1734100458662,0.12549,223.89,223.83,21.06299787]
[1734100458859,0.12549,223.89,223.84,21.06299787]
[1734100459261,0.12549,223.9,223.84,21.06299787]
[1734100459455,0.12549,223.9,223.87,21.06299787]
[1734100459658,21.59750837,223.95,223.88,21.06299787]
[1734100459854,0.12549,223.94,223.88,21.06299787]
[1734100460190,0.5345105,223.95,223.91,21.06299787]
[1734100461459,0.12549,223.94,223.91,21.06299787]
[1734100461868,22.02577186,223.94,223.87,21.06299787]
[1734100462044,0.12549,223.91,223.86,41.06299787]
[1734100462241,0.12549,223.91,223.87,21.06299787]
[1734100462469,0.12549,223.92,223.87,21.06299787]
[1734100463363,0.96288165,223.93,223.87,21.06299787]
[1734100463537,21.06299787,223.92,223.85,21.06299787]
[1734100463878,21.06299787,223.92,223.81,2.64561991]
[1734100463879,0.12549,223.9,223.84,21.06299787]
[1734100464950,21.06299787,223.89,223.82,21.06299787]
[1734100465156,21.18848787,223.88,223.81,21.06299787]
[1734100465346,0.12549,223.86,223.81,21.06299787]
[1734100465549,0.12549,223.86,223.83,21.06299787]
[1734100465854,0.12549,223.87,223.83,21.06299787]
[1734100466665,0.12549,223.87,223.81,21.06299787]
[1734100466866,0.12549,223.85,223.82,21.06299787]
[1734100467346,0.12549,223.86,223.82,21.06299787]
[1734100468357,0.12549,223.87,223.82,21.06299787]
[1734100468783,0.83765838,223.87,223.82,21.06299787]
[1734100469355,21.18848787,223.83,223.7,11.1751]
[1734100469499,21.06299787,223.84,223.77,21.06299787]
[1734100469785,0.12549,223.84,223.78,21.06299787]
[1734100469972,20.43946307,223.86,223.79,21.06299787]
[1734100470349,0.12549,223.88,223.82,21.06299787]
[1734100471384,24.26979787,223.89,223.82,21.06299787]
[1734100471746,21.06299787,223.86,223.79,21.06299787]
[1734100471997,21.06299787,223.82,223.75,21.06299787]
[1734100472290,21.18848787,223.81,223.74,21.06299787]
[1734100472725,0.12549,223.81,223.76,21.06299787]
[1734100472884,0.12549,223.81,223.75,21.06299787]
[1734100473377,0.12549,223.82,223.76,21.06299787]
[1734100473893,21.06299787,223.86,223.79,21.06299787]
[1734100474196,3.2068,223.89,223.83,21.06299787]
[1734100474357,24.26979787,223.89,223.82,21.06299787]
[1734100474559,21.18848787,223.88,223.81,21.06299787]
[1734100474759,21.06299787,223.88,223.81,21.06299787]
[1734100475065,21.06299787,223.87,223.8,21.06299787]
[1734100475263,0.12549,223.86,223.8,13.17623618]
[1734100475460,13.17623618,223.87,223.8,13.17623618]
[1734100475704,0.12549,223.83,223.77,13.17623618]
[1734100475968,0.12549,223.8,223.74,13.17623618]
[1734100477358,0.12549,223.79,223.73,13.17623618]
[1734100477573,0.12549,223.79,223.74,13.17623618]
[1734100478192,0.12549,223.8,223.75,13.17623618]
[1734100478557,13.17623618,223.82,223.75,13.17623618]
[1734100478925,0.12549,223.81,223.75,13.17623618]
[1734100480019,0.12549,223.81,223.76,13.17623618]
[1734100481289,13.30172618,223.81,223.74,13.17623618]
[1734100481516,0.12549,223.79,223.73,13.17623618]
[1734100482223,0.12549,223.78,223.72,13.17623618]
[1734100482616,13.17623618,223.8,223.75,20.0]
[1734100482825,15.14173618,223.83,223.76,13.17623618]
[1734100483121,0.12549,223.82,223.76,13.17623618]
[1734100483633,5.1379,223.89,223.81,13.17623618]
[1734100483841,1.9311,223.89,223.84,13.17623618]
[1734100484186,1.9311,223.89,223.83,13.17623618]
[1734100484801,15.10733618,223.89,223.82,13.17623618]
[1734100485006,15.10733618,223.89,223.78,11.1713]
[1734100485007,13.17623618,223.88,223.81,33.17623618]
[1734100485402,15.10733618,223.89,223.82,13.17623618]
[1734100485737,0.12549,223.88,223.82,13.17623618]
[1734100486806,13.30172618,223.88,223.81,33.17623618]
[1734100487008,0.12549,223.87,223.82,13.17623618]
[1734100487419,0.12549,223.88,223.82,13.17623618]
[1734100488027,13.17623618,223.9,223.82,13.17623618]
[1734100488691,0.12549,223.89,223.83,13.17623618]
[1734100490203,0.12549,223.88,223.82,13.17623618]
[1734100490394,0.12549,223.88,223.84,13.17623618]
[1734100490597,0.12549,223.88,223.83,13.17623618]
[1734100491627,13.30172618,223.89,223.82,13.17623618]
[1734100491941,13.30172618,223.89,223.83,1.94358591]
[1734100492923,13.30172618,223.89,223.82,13.17623618]
[1734100493135,0.12549,223.87,223.81,13.17623618]
[1734100493919,0.12549,223.87,223.82,1.94517947]
[1734100494324,0.12549,223.88,223.82,15.12141565]
[1734100494632,0.12549,223.88,223.82,13.17623618]
[1734100495322,13.17623618,223.91,223.84,13.17623618]
[1734100495501,13.17623618,223.91,223.8,11.84027809]
[1734100495502,0.5345105,223.95,223.87,13.17623618]
[1734100495816,0.5345105,223.95,223.88,13.17623618]
[1734100496530,13.17623618,223.92,223.84,13.17623618]
[1734100496732,13.17623618,223.92,223.85,1.94400009]
[1734100496913,0.12549,223.91,223.86,1.94400009]
[1734100497236,0.12549,223.91,223.85,35.12023627]
[1734100497543,0.12549,223.91,223.85,33.17623618]
[1734100497713,13.30172618,223.9,223.83,13.17623618]
[1734100498058,13.30172618,223.9,223.84,1.94540955]
[1734100498346,0.12549,223.9,223.84,15.12175473]
[1734100498629,0.12549,223.89,223.85,1.94551855]
[1734100498811,0.12549,223.89,223.84,15.12138835]
[1734100499013,0.12549,223.89,223.85,1.94515217]
[1734100499221,0.12549,223.9,223.85,15.12138835]
[1734100499410,0.12549,223.9,223.84,13.17623618]
[1734100500211,13.30172618,223.88,223.78,15.216736]
[1734100500435,13.30172618,223.87,223.8,13.17623618]
[1734100500608,13.30172618,223.87,223.79,1.9456586]
[1734100500609,13.17623618,223.86,223.81,1.9456586]
[1734100500819,13.17623618,223.86,223.79,13.17623618]
[1734100501050,13.17623618,223.86,223.8,1.94722125]
[1734100501242,0.12549,223.85,223.81,1.94722125]
[1734100501535,0.12549,223.83,223.78,13.17623618]
[1734100501744,13.17623618,223.86,223.79,15.12471687]
[1734100501908,13.17623618,223.87,223.8,15.12471687]
[1734100502235,13.17623618,223.87,223.8,13.17623618]
[1734100502236,0.12549,223.86,223.8,13.17623618]
[1734100502423,13.30172618,223.86,223.79,13.17623618]
[1734100502930,0.12549,223.84,223.78,13.17623618]
[1734100503135,0.12549,223.84,223.79,15.1252043]
[1734100503567,0.12549,223.85,223.79,13.17623618]
[1734100504644,13.30172618,223.85,223.78,13.17623618]
[1734100504846,13.30172618,223.85,223.79,1.94942151]
[1734100505645,13.30172618,223.81,223.75,1.94942151]
[1734100505933,0.12549,223.81,223.76,1.94942151]
[1734100506123,0.12549,223.81,223.77,1.94942151]
[1734100506312,0.12549,223.8,223.76,1.94942151]
[1734100506502,0.12549,223.8,223.74,13.17623618]
[1734100506929,13.17623618,223.79,223.75,1.95019251]
[1734100507254,54.34483429,223.85,223.73,1.9510813]
[1734100507255,13.17623618,223.77,223.73,1.9510813]
[1734100507403,13.30172618,223.76,223.72,1.9510813]
[1734100507606,0.12549,223.74,223.71,1.9510813]
[1734100507802,0.12549,223.74,223.69,1.95164403]
[1734100508039,0.12549,223.74,223.69,13.17623618]
[1734100508212,0.12549,223.75,223.69,13.17623618]
[1734100508413,0.12549,223.75,223.7,1.95187964]
[1734100508609,13.30172618,223.77,223.7,13.17623618]
[1734100508843,0.12549,223.77,223.71,13.17623618]
[1734100509048,0.12549,223.77,223.68,2.72381122]
[1734100509049,13.17623618,223.82,223.75,13.17623618]
[1734100509988,0.12549,223.81,223.75,13.17623618]
[1734100510268,0.12549,223.78,223.72,13.17623618]
[1734100510450,13.30172618,223.78,223.72,13.17623618]
[1734100511654,0.12549,223.78,223.72,13.17623618]
[1734100512457,0.12549,223.78,223.69,11.1757]
[1734100512458,0.12549,223.77,223.71,13.17623618]
[1734100512659,13.30172618,223.75,223.68,13.17623618]
[1734100512867,0.12549,223.73,223.69,1.94651772]
[1734100513162,13.17623618,223.72,223.68,1.94651772]
[1734100513286,13.17623618,223.72,223.66,1.94651772]
[1734100513573,23.902374,223.83,223.71,13.17623618]
[1734100513731,13.17623618,223.81,223.74,13.17623618]
[1734100513939,13.17623618,223.81,223.75,13.17623618]
[1734100514132,13.17623618,223.81,223.74,13.17623618]
[1734100514133,0.12549,223.8,223.74,13.17623618]
[1734100514442,0.12549,223.78,223.72,13.17623618]
[1734100514826,0.12549,223.78,223.67,0.67052246]
[1734100514827,13.30172618,223.78,223.71,13.17623618]
[1734100515022,0.12549,223.76,223.7,13.17623618]
[1734100515428,0.12549,223.73,223.7,20.0]
[1734100515632,13.30172618,223.73,223.7,20.0]
[1734100516046,0.12549,223.73,223.7,20.0]
[1734100516249,13.30172618,223.73,223.67,13.17623618]
[1734100516681,13.30172618,223.73,223.66,15.83766043]
[1734100517061,13.30172618,223.73,223.66,13.17623618]
[1734100517451,13.17623618,223.67,223.57,13.0933]
[1734100517772,0.12549,223.66,223.6,13.17623618]
[1734100518081,13.17623618,223.7,223.63,13.17623618]
[1734100518446,0.12549,223.69,223.63,13.17623618]
[1734100519875,0.12549,223.69,223.6,11.1805]
[1734100520075,0.12549,223.67,223.61,15.11920121]
[1734100520257,13.30172618,223.67,223.6,24.35673618]
[1734100520875,0.12549,223.67,223.63,13.17623618]
[1734100521047,0.12549,223.67,223.64,13.17623618]
[1734100521245,13.30172618,223.7,223.63,13.17623618]
[1734100521462,0.12549,223.69,223.63,20.0]
[1734100521760,0.12549,223.68,223.63,20.0]
[1734100521955,0.12549,223.68,223.63,33.17623618]
[1734100522163,0.12549,223.69,223.63,33.17623618]
[1734100522535,0.25098,223.69,223.63,33.17623618]
[1734100523072,0.12549,223.67,223.61,13.17623618]
[1734100524296,0.12549,223.66,223.6,13.17623618]
[1734100524471,0.12549,223.64,223.59,20.0]
[1734100524662,0.12549,223.64,223.61,20.0]
[1734100524862,0.12549,223.64,223.59,13.17623618]
[1734100525183,13.17623618,223.74,223.59,13.17623618]
[1734100525184,13.17623618,223.7,223.63,13.17623618]
[1734100525402,13.17623618,223.74,223.67,13.17623618]
[1734100525788,19.74233618,223.75,223.68,13.17623618]
[1734100525947,0.12549,223.72,223.67,13.17623618]
[1734100526074,13.17623618,223.74,223.67,13.17623618]
[1734100526296,0.12549,223.72,223.68,13.17623618]
[1734100526661,1.8588,223.79,223.71,13.17623618]
[1734100526917,15.03503618,223.79,223.72,13.17623618]
[1734100527383,0.12549,223.78,223.72,13.17623618]
[1734100527685,15.03503618,223.79,223.72,13.17623618]
[1734100527903,1.8588,223.79,223.64,0.67042444]
[1734100528188,13.30172618,223.73,223.66,13.17623618]
[1734100528381,0.12549,223.71,223.65,13.17623618]
[1734100530185,0.12549,223.71,223.65,20.0]
[1734100530186,0.12549,223.7,223.65,20.0]
[1734100530558,13.30172618,223.7,223.63,13.17623618]
[1734100530754,13.17623618,223.69,223.63,13.17623618]
[1734100530975,0.12549,223.68,223.63,13.17623618]
[1734100531161,13.17623618,223.66,223.6,13.17623618]
[1734100531360,0.12549,223.65,223.59,13.17623618]
[1734100531593,0.12549,223.65,223.61,13.17623618]
[1734100532091,13.30172618,223.66,223.59,13.17623618]
[1734100532297,0.12549,223.64,223.58,13.17623618]
[1734100532656,13.30172618,223.64,223.57,13.17623618]
[1734100533079,15.0,223.75,223.53,0.67071181]
[1734100533080,14.99999811,223.81,223.63,13.17623618]
[1734100533282,13.17623618,223.75,223.68,13.17623618]
[1734100533487,13.17623618,223.76,223.69,13.17623618]
[1734100533799,13.17623618,223.77,223.7,13.17623618]
[1734100533967,13.30172618,223.76,223.69,13.17623618]
[1734100534363,13.17623618,223.76,223.69,13.17623618]
[1734100534778,0.12549,223.75,223.69,13.17623618]
[1734100535260,13.17623618,223.74,223.64,11.1784]
[1734100535465,13.17623618,223.74,223.6,0.67050182]
[1734100535466,13.30172618,223.69,223.6,11.1802]
[1734100535681,13.30172618,223.69,223.61,13.17623618]
[1734100535890,13.30172618,223.69,223.6,24.35643618]
[1734100535891,13.17623618,223.67,223.6,24.35643618]
[1734100536094,0.12549,223.66,223.61,13.17623618]
[1734100536599,0.12549,223.67,223.61,13.17623618]
[1734100537278,0.25098,223.68,223.62,13.17623618]
[1734100537875,0.12549,223.67,223.63,20.0]
[1734100538144,13.17623618,223.66,223.59,13.17623618]
[1734100538396,24.027864,223.67,223.57,13.17623618]
[1734100538397,0.12549,223.64,223.57,13.17623618]
[1734100538583,13.42721618,223.64,223.58,1.93989183]
[1734100538763,13.42721618,223.62,223.55,13.17623618]
[1734100539168,0.25098,223.62,223.56,13.17623618]
[1734100540305,13.17623618,223.65,223.58,13.17623618]
[1734100540676,0.25098,223.64,223.58,13.17623618]
[1734100541092,13.42721618,223.64,223.56,13.17623618]
[1734100541371,13.42721618,223.64,223.57,1.94113954]
[1734100541568,0.25098,223.64,223.57,15.11737572]
[1734100541772,13.17623618,223.62,223.58,1.94113954]
[1734100541972,24.027864,223.64,223.56,13.17623618]
[1734100541973,0.12549,223.61,223.56,13.17623618]
[1734100542393,0.12549,223.61,223.51,13.2051]
[1734100542394,13.30172618,223.64,223.57,13.17623618]
[1734100542598,0.12549,223.63,223.57,13.17623618]
[1734100542846,0.12549,223.61,223.55,13.17623618]
[1734100543127,13.30172618,223.58,223.5,13.17623618]
[1734100543425,0.12549,223.54,223.51,1.94320185]
[1734100543724,0.12549,223.54,223.48,13.17623618]
[1734100543725,13.30172618,223.54,223.52,1.94320185]
[1734100543875,13.30172618,223.54,223.48,1.94320185]
[1734100544072,13.30172618,223.52,223.49,1.94320185]
[1734100544314,13.30172618,223.52,223.5,1.94320185]
[1734100544497,26.1808,223.6,223.45,1.94320185]
[1734100544498,0.12549,223.5,223.45,1.94320185]
[1734100545398,0.12549,223.5,223.44,1.94320185]
[1734100545997,23.902374,223.51,223.44,21.15012073]
[1734100546198,23.902374,223.48,223.42,21.15012073]
[1734100546389,0.12549,223.45,223.38,21.15012073]
[1734100546587,0.12549,223.45,223.39,1.9419726]
[1734100546793,0.12549,223.45,223.34,1.8981]
[1734100546794,0.12549,223.45,223.38,1.9419726]
[1734100547008,0.12549,223.49,223.36,11.1926]
[1734100547189,24.027864,223.49,223.37,1.9419726]
[1734100547414,24.027864,223.49,223.38,1.9419726]
[1734100547702,24.027864,223.49,223.37,1.9419726]
[1734100547907,0.12549,223.45,223.38,23.09209333]
[1734100548107,0.12549,223.45,223.39,23.09209333]
[1734100548308,0.12549,223.45,223.4,1.9419726]
[1734100548610,0.12549,223.45,223.39,21.15012073]
[1734100548815,0.12549,223.45,223.4,1.94016972]
[1734100549188,0.12549,223.45,223.39,21.15012073]
[1734100549612,21.15012073,223.47,223.39,21.15012073]
[1734100550111,0.12549,223.46,223.39,21.15012073]
[1734100550372,2.0362,223.5,223.44,21.15012073]
[1734100550631,0.12549,223.49,223.42,21.15012073]
[1734100550918,21.27561073,223.49,223.41,21.15012073]
[1734100551122,0.12549,223.47,223.4,21.15012073]
[1734100551421,2.0362,223.5,223.36,21.15012073]
[1734100551422,21.27561073,223.44,223.36,21.15012073]
[1734100551586,2.0362,223.5,223.34,21.15012073]
[1734100551587,0.12549,223.41,223.34,21.15012073]
[1734100551911,21.27561073,223.41,223.34,21.15012073]
[1734100552289,0.12549,223.41,223.34,21.15012073]
[1734100552611,21.27561073,223.41,223.34,21.15012073]
[1734100553618,0.12549,223.41,223.34,21.15012073]
[1734100553840,0.12549,223.41,223.34,41.15012073]
[1734100554493,0.12549,223.41,223.35,21.15012073]
[1734100554826,0.12549,223.42,223.38,21.15012073]
[1734100555309,0.12549,223.44,223.39,21.15012073]
[1734100555504,21.40110073,223.44,223.37,21.15012073]
[1734100555702,0.12549,223.4,223.29,13.1167]
[1734100555886,0.12549,223.4,223.33,21.15012073]
[1734100556090,0.12549,223.38,223.32,21.15012073]
[1734100556299,21.40110073,223.38,223.3,21.15012073]
[1734100556619,6.2207,223.42,223.29,21.15012073]
[1734100556620,0.12549,223.35,223.29,21.15012073]
[1734100557933,0.12549,223.36,223.3,21.15012073]
[1734100558129,0.12549,223.36,223.31,21.15012073]
[1734100558637,0.25098,223.38,223.33,21.15012073]
[1734100558922,2.0498,223.44,223.37,21.15012073]
[1734100559145,2.0498,223.44,223.38,21.15012073]
[1734100559311,0.12549,223.43,223.38,21.15012073]
[1734100559951,0.12549,223.43,223.37,21.15012073]
[1734100560103,23.19992073,223.44,223.37,21.15012073]
[1734100560438,2.0498,223.44,223.38,21.15012073]
[1734100561135,0.12549,223.43,223.38,21.15012073]
[1734100561332,2.0498,223.44,223.38,21.15012073]
[1734100561537,2.0498,223.44,223.39,21.15012073]
[1734100561744,0.12549,223.46,223.4,21.15012073]
[1734100562116,2.0384,223.49,223.35,11.193]
[1734100562117,2.0384,223.49,223.45,21.15012073]
[1734100562234,21.15012073,223.52,223.44,21.15012073]
[1734100562410,21.15012073,223.53,223.46,21.15012073]
[1734100562633,21.15012073,223.53,223.35,135.76439112]
[1734100562634,21.27561073,223.5,223.42,21.15012073]
[1734100562835,21.27561073,223.5,223.43,21.15012073]
[1734100563139,21.27561073,223.5,223.42,21.15012073]
[1734100563434,21.27561073,223.5,223.43,21.15012073]
[1734100564022,0.12549,223.5,223.44,21.15012073]
[1734100564611,0.25098,223.5,223.44,21.15012073]
[1734100564834,0.25098,223.5,223.45,21.15012073]
[1734100565058,0.12549,223.51,223.45,21.15012073]
[1734100565453,21.15012073,223.52,223.45,21.15012073]
[1734100565470,21.15012073,223.52,223.38,0.67128348]
[1734100565471,29.56572073,223.54,223.46,21.15012073]
[1734100565829,1.9901,223.54,223.48,21.15012073]
[1734100566033,1.9901,223.54,223.49,21.15012073]
[1734100566229,1.9901,223.54,223.5,21.15012073]
[1734100566452,27.36582073,223.59,223.51,21.15012073]
[1734100566724,1.9771,223.6,223.54,21.15012073]
[1734100568138,21.15012073,223.58,223.51,21.15012073]
[1734100568410,21.27561073,223.57,223.49,21.15012073]
[1734100569441,21.15012073,223.56,223.48,41.15012073]
[1734100569643,0.12549,223.55,223.48,41.15012073]
[1734100570255,0.12549,223.54,223.48,41.15012073]
[1734100570570,21.15012073,223.52,223.45,21.15012073]
[1734100570657,21.15012073,223.52,223.42,2.69022843]
[1734100570658,0.25098,223.5,223.43,21.15012073]
[1734100571050,0.25098,223.5,223.44,21.15012073]
[1734100571258,0.12549,223.52,223.46,21.15012073]
[1734100571552,0.12549,223.53,223.48,21.15012073]
[1734100571945,0.12549,223.53,223.47,21.15012073]
[1734100572540,0.12549,223.53,223.48,21.15012073]
[1734100572753,0.12549,223.53,223.47,21.15012073]
[1734100572985,21.27561073,223.53,223.45,21.15012073]
[1734100573768,0.12549,223.51,223.45,21.15012073]
[1734100574491,23.902374,223.53,223.46,21.15012073]
[1734100574790,0.12549,223.52,223.46,21.15012073]
[1734100575897,6.2048,223.59,223.5,21.15012073]
[1734100576078,6.2048,223.59,223.53,21.15012073]
[1734100576456,21.15012073,223.57,223.5,21.15012073]
[1734100576740,6.2048,223.59,223.49,21.15012073]
[1734100576968,0.12549,223.55,223.49,21.15012073]
[1734100577077,0.12549,223.55,223.51,21.15012073]
[1734100577259,6.2048,223.59,223.47,20.0]
[1734100577260,6.2048,223.59,223.52,21.15012073]
[1734100577456,23.12722073,223.6,223.52,21.15012073]
[1734100577693,21.27561073,223.59,223.52,21.15012073]
[1734100577900,21.27561073,223.59,223.51,21.15012073]
[1734100578065,0.12549,223.56,223.5,21.15012073]
[1734100578782,0.12549,223.57,223.5,21.15012073]
[1734100578965,21.27561073,223.57,223.5,21.15012073]
[1734100579625,0.12549,223.55,223.49,21.15012073]
[1734100579674,0.12549,223.53,223.46,21.15012073]
[1734100580281,23.902374,223.56,223.47,21.15012073]
[1734100580282,21.27561073,223.55,223.47,21.15012073]
[1734100581177,0.12549,223.53,223.46,21.15012073]
[1734100581381,0.12549,223.49,223.47,1.94920233]
[1734100581578,0.12549,223.49,223.43,21.15012073]
[1734100581763,21.27561073,223.49,223.42,21.15012073]
[1734100581963,0.12549,223.49,223.42,21.15012073]
[1734100582183,0.12549,223.49,223.4,2.69166333]
[1734100582184,0.12549,223.49,223.44,21.15012073]
[1734100582809,0.12549,223.5,223.44,21.15012073]
[1734100583372,0.12549,223.5,223.45,1.95200595]
[1734100583599,0.12549,223.5,223.44,21.15012073]
[1734100583912,21.15012073,223.56,223.49,21.15012073]
[1734100584121,6.3966,223.59,223.53,21.15012073]
[1734100584708,0.12549,223.58,223.53,21.15012073]
[1734100584883,0.12549,223.58,223.52,21.15012073]
[1734100585069,21.27561073,223.58,223.51,21.15012073]
[1734100585276,21.27561073,223.58,223.52,1.95234639]
[1734100585673,0.12549,223.56,223.51,20.0]
[1734100585982,21.27561073,223.56,223.49,21.15012073]
[1734100586339,21.27561073,223.52,223.5,1.95333282]
[1734100586429,0.12549,223.5,223.46,1.95336777]
[1734100586698,0.12549,223.5,223.45,23.1034885]
[1734100586867,0.12549,223.52,223.46,21.15012073]
[1734100587066,0.12549,223.52,223.47,21.15012073]
[1734100587479,0.12549,223.53,223.48,1.95556458]
[1734100588097,0.12549,223.53,223.47,21.15012073]
[1734100588301,0.12549,223.53,223.48,1.95543569]
[1734100588593,0.12549,223.53,223.47,1.95543569]
[1734100588792,0.12549,223.53,223.48,1.95543569]
[1734100588996,0.12549,223.53,223.47,1.95543569]
[1734100589578,0.12549,223.53,223.46,21.15012073]
[1734100589908,0.12549,223.53,223.47,1.95639184]
[1734100590217,0.12549,223.53,223.47,23.10651257]
[1734100590408,0.12549,223.53,223.46,21.15012073]
[1734100590997,21.27561073,223.53,223.46,21.15012073]
[1734100591227,21.15012073,223.52,223.44,21.15012073]
[1734100591531,0.12549,223.51,223.45,43.106526]
[1734100591694,0.12549,223.51,223.46,1.95640527]
[1734100591887,23.902374,223.54,223.46,23.106526]
[1734100591888,0.12549,223.53,223.46,23.106526]
[1734100592101,0.12549,223.53,223.47,23.106526]
[1734100592305,21.15012073,223.57,223.5,21.15012073]
[1734100592930,0.12549,223.56,223.5,21.15012073]
[1734100593236,13.21131461,223.57,223.5,13.21131461]
[1734100593385,0.12549,223.56,223.5,13.21131461]
[1734100593586,0.12549,223.56,223.51,13.21131461]
[1734100593823,6.3966,223.59,223.52,13.21131461]
[1734100593997,15.18841461,223.6,223.53,13.21131461]
[1734100594195,13.33680461,223.59,223.51,13.21131461]
[1734100594396,13.21131461,223.55,223.48,13.21131461]
[1734100594928,0.12549,223.55,223.48,13.21131461]
[1734100595127,0.12549,223.55,223.49,13.21131461]
[1734100595331,0.12549,223.56,223.49,21.13943556]
[1734100596235,0.12549,223.55,223.49,21.13943556]
[1734100597111,0.12549,223.54,223.47,21.13943556]
[1734100597317,21.13943556,223.53,223.46,21.13943556]
[1734100597520,0.12549,223.52,223.46,21.13943556]
[1734100597730,21.26492556,223.52,223.45,21.13943556]
[1734100598160,21.13943556,223.51,223.44,41.13943556]
[1734100598771,0.12549,223.5,223.44,41.13943556]
[1734100598932,0.12549,223.5,223.45,21.13943556]
[1734100599760,0.12549,223.51,223.46,21.13943556]
[1734100599958,0.12549,223.56,223.49,21.13943556]
[1734100600344,21.13943556,223.57,223.49,21.13943556]
[1734100600542,1.9771,223.6,223.44,31.85941023]
[1734100600543,23.11653556,223.6,223.52,21.13943556]
[1734100600747,23.11653556,223.6,223.53,21.13943556]
[1734100600948,0.12549,223.59,223.52,21.13943556]
[1734100601162,0.12549,223.59,223.53,21.13943556]
[1734100601450,23.11653556,223.6,223.44,31.85941023]
[1734100601451,1.9771,223.6,223.54,21.13943556]
[1734100601653,21.13943556,223.62,223.54,21.13943556]
[1734100601853,0.12549,223.61,223.54,21.13943556]
[1734100602064,21.13943556,223.61,223.54,21.13943556]
[1734100602587,6.2603,223.64,223.51,21.13943556]
[1734100602588,21.26492556,223.59,223.51,21.13943556]
[1734100602798,0.12549,223.57,223.52,1.95877968]
[1734100602934,0.12549,223.57,223.51,21.13943556]
[1734100603151,0.25098,223.57,223.5,41.13943556]
[1734100603342,0.12549,223.57,223.52,21.13943556]
[1734100603744,0.25098,223.58,223.52,21.13943556]